bitfinex-derivatives/quotes_SOLF0:USTF0_20260222
["timestamp","ask_amount","ask_price","bid_price","bid_amount"]
[1771718644384,10.5816,85.079,85.013,9.25993038]
[1771718645784,10.5819,85.076,85.013,9.25993038]
[1771718646384,8.98493335,85.075,85.013,9.25993038]
[1771718646581,10.5819,85.076,85.013,9.25993038]
[1771718646781,8.98493419,85.075,85.013,9.25993038]
[1771718646978,10.5819,85.076,85.013,9.25993038]
[1771718647286,8.98493419,85.075,85.013,9.25993038]
[1771718647482,10.5819,85.076,85.013,9.25993038]
[1771718647687,8.98619273,85.075,85.013,9.25993038]
[1771718647883,10.5819,85.076,85.013,9.25993038]
[1771718648086,8.98619273,85.075,85.013,9.25993038]
[1771718648281,8.98687025,85.074,85.013,9.25993038]
[1771718648482,10.5819,85.076,85.013,9.25993038]
[1771718648678,8.98756968,85.075,85.013,9.25993038]
[1771718648878,8.98756968,85.074,85.013,9.25993038]
[1771718649085,10.5819,85.076,85.013,9.25993038]
[1771718649287,8.98757366,85.075,85.013,9.25993038]
[1771718649489,10.5819,85.076,85.013,9.25993038]
[1771718649490,8.98757366,85.074,85.013,9.25993038]
[1771718649690,10.5819,85.076,85.013,9.25993038]
[1771718649880,8.98905592,85.075,85.013,9.25993038]
[1771718650085,8.98905592,85.074,85.013,9.25993038]
[1771718650390,8.99063865,85.073,85.013,9.25993038]
[1771718650586,10.5819,85.076,85.013,9.25993038]
[1771718650786,8.99063865,85.075,85.013,9.25993038]
[1771718651092,8.99063865,85.074,85.013,9.25993038]
[1771718651288,10.5819,85.076,85.013,9.25993038]
[1771718651289,8.99063865,85.073,85.013,9.25993038]
[1771718651589,8.99063865,85.072,85.013,9.25993038]
[1771718651789,10.5819,85.076,85.016,9.2819027]
[1771718652391,10.5807,85.086,85.019,9.2819027]
[1771718652589,9.00919386,85.085,85.019,9.2819027]
[1771718652789,9.00919386,85.084,85.019,9.2819027]
[1771718652991,10.89291104,85.104,85.019,9.2819027]
[1771718653192,9.00919388,85.103,85.019,9.2819027]
[1771718653493,9.00919388,85.102,85.019,9.2819027]
[1771718653691,10.5812,85.082,85.019,9.2819027]
[1771718656199,10.5799,85.092,85.028,9.29420812]
[1771718656399,9.01556728,85.091,85.028,9.29420812]
[1771718656598,9.01556728,85.09,85.028,9.29420812]
[1771718656800,9.01556728,85.089,85.028,9.29420812]
[1771718656999,10.5813,85.082,85.028,9.29420812]
[1771718659304,10.5827,85.07,85.028,9.29420812]
[1771718661403,10.5814,85.081,85.028,9.29420812]
[1771718661703,10.89291104,85.104,85.028,9.29420812]
[1771718661904,9.02324527,85.103,85.028,9.29420812]
[1771718662104,9.02324527,85.102,85.028,9.29420812]
[1771718662307,185.6276,85.143,85.028,9.29420812]
[1771718662308,9.02324527,85.101,85.028,9.29420812]
[1771718662507,9.02324527,85.1,85.028,9.29420812]
[1771718662705,10.58,85.092,85.028,9.29420812]
[1771718662897,9.02324527,85.091,85.028,9.29420812]
[1771718663102,9.02324527,85.09,85.028,9.29420812]
[1771718663305,9.02324527,85.089,85.028,9.29420812]
[1771718663505,9.02324527,85.088,85.028,9.29420812]
[1771718663706,9.02324527,85.087,85.028,9.29420812]
[1771718663908,9.02324527,85.086,85.028,9.29420812]
[1771718664098,10.58,85.092,85.028,9.29420812]
[1771718664299,9.02073927,85.091,85.028,9.29420812]
[1771718664511,10.5786,85.103,85.03,9.34597225]
[1771718664707,9.01900757,85.102,85.03,9.34597225]
[1771718664910,10.5786,85.103,85.03,9.34597225]
[1771718665711,10.5786,85.103,85.035,9.30377905]
[1771718666810,10.5786,85.103,85.037,9.25849128]
[1771718667913,10.5772,85.114,85.04,9.25849128]
[1771718668113,9.00719556,85.113,85.04,9.25849128]
[1771718668313,9.00719556,85.112,85.04,9.25849128]
[1771718668513,9.00719556,85.111,85.04,9.25849128]
[1771718668712,9.00719556,85.11,85.042,9.25119159]
[1771718668912,9.00719556,85.109,85.042,9.25119159]
[1771718669113,10.5776,85.111,85.042,8.52969316]
[1771718669314,9.00500285,85.11,85.042,8.52969316]
[1771718669616,10.5776,85.111,85.042,8.52969316]
[1771718669816,9.00318564,85.11,85.042,8.52969316]
[1771718670016,10.5776,85.111,85.042,8.52969316]
[1771718670217,9.00319296,85.11,85.042,8.52969316]
[1771718670417,10.5776,85.111,85.042,8.52969316]
[1771718670617,9.00170405,85.11,85.042,8.52969316]
[1771718670817,10.5776,85.111,85.042,8.52969316]
[1771718671019,9.00170405,85.11,85.042,8.52969316]
[1771718671218,10.5776,85.111,85.042,8.52969316]
[1771718671822,10.5776,85.111,85.044,8.89035187]
[1771718673418,10.5776,85.111,85.05,8.89938182]
[1771718674815,10.5776,85.111,85.052,8.89974778]
[1771718679622,10.5776,85.111,85.054,8.88779254]
[1771718688342,8.98245785,85.11,85.054,8.88779254]
[1771718688541,10.5776,85.111,85.054,8.88779254]
[1771718688738,8.98245785,85.11,85.054,8.88779254]
[1771718688940,10.5776,85.111,85.054,8.88779254]
[1771718689140,8.98245785,85.11,85.054,8.88779254]
[1771718689341,10.5776,85.111,85.054,8.88779254]
[1771718689541,8.98292045,85.11,85.054,8.88779254]
[1771718689742,10.5776,85.111,85.054,8.88779254]
[1771718690045,8.98292711,85.11,85.054,8.88779254]
[1771718690344,10.5776,85.111,85.054,8.88779254]
[1771718690539,8.98350402,85.11,85.054,8.88779254]
[1771718690744,10.5776,85.111,85.054,8.88779254]
[1771718690946,8.98350402,85.11,85.054,8.88779254]
[1771718691145,10.5776,85.111,85.054,8.88779254]
[1771718691340,8.98332865,85.11,85.054,8.88779254]
[1771718691644,10.5776,85.111,85.054,8.88779254]
[1771718691944,8.98455435,85.11,85.054,8.88779254]
[1771718692143,10.5776,85.111,85.054,8.88779254]
[1771718692343,8.98455435,85.11,85.054,8.88779254]
[1771718692544,8.98455435,85.109,85.054,8.88779254]
[1771718692743,10.5776,85.111,85.054,8.88779254]
[1771718692943,8.98617238,85.11,85.054,8.88779254]
[1771718693141,8.98617238,85.109,85.054,8.88779254]
[1771718693342,8.987678,85.108,85.054,8.88779254]
[1771718693544,10.5776,85.111,85.054,8.88779254]
[1771718693846,8.987678,85.11,85.054,8.88779254]
[1771718694040,8.987678,85.109,85.054,8.88779254]
[1771718694341,8.987678,85.108,85.054,8.88779254]
[1771718694538,10.5776,85.111,85.054,8.88779254]
[1771718694741,8.98961255,85.11,85.054,8.88779254]
[1771718694940,10.5776,85.111,85.054,8.88779254]
[1771718694941,8.98961255,85.109,85.054,8.88779254]
[1771718695135,8.98961255,85.108,85.054,8.88779254]
[1771718695341,8.99183249,85.107,85.054,8.88779254]
[1771718695644,10.5776,85.111,85.054,8.88779254]
[1771718695941,8.99183249,85.11,85.054,8.88779254]
[1771718696140,10.5776,85.111,85.054,8.88779254]
[1771718696141,8.99183249,85.109,85.054,8.88779254]
[1771718696341,8.99183249,85.108,85.054,8.88779254]
[1771718696642,8.99183249,85.107,85.054,8.88779254]
[1771718696841,8.99183249,85.106,85.054,8.88779254]
[1771718697041,10.5776,85.111,85.054,8.88779254]
[1771718697344,8.99439405,85.11,85.054,8.88779254]
[1771718697546,8.99439405,85.109,85.054,8.88779254]
[1771718697741,10.5776,85.111,85.057,8.88555137]
[1771718697742,8.99439405,85.108,85.057,8.88555137]
[1771718697940,10.5776,85.111,85.057,8.88555137]
[1771718698141,8.996246,85.11,85.057,8.88555137]
[1771718698346,10.5776,85.111,85.057,8.88555137]
[1771718698549,10.5761,85.123,85.062,8.88555137]
[1771718698746,9.01822711,85.122,85.062,8.88555137]
[1771718698947,9.01822711,85.121,85.062,8.88555137]
[1771718699150,9.01822711,85.12,85.073,8.90025703]
[1771718699346,10.5747,85.134,85.073,8.90025703]
[1771718699540,9.02443997,85.133,85.073,8.90025703]
[1771718699746,9.02443997,85.132,85.073,8.90025703]
[1771718699947,9.02443997,85.131,85.073,8.90025703]
[1771718700247,10.5747,85.134,85.073,8.90025703]
[1771718700248,9.02443997,85.13,85.073,8.90025703]
[1771718700440,9.02443997,85.129,85.073,8.90025703]
[1771718700639,9.02443997,85.128,85.073,8.90025703]
[1771718700850,10.5747,85.134,85.073,8.90025703]
[1771718701048,9.01617835,85.133,85.073,8.90025703]
[1771718701348,9.01617835,85.132,85.073,8.90025703]
[1771718701648,9.01617835,85.131,85.073,8.90025703]
[1771718701848,9.01617835,85.13,85.073,8.90025703]
[1771718702039,9.01617835,85.129,85.073,8.90025703]
[1771718702245,10.576,85.124,85.073,8.90025703]
[1771718702546,9.01172058,85.123,85.052,8.91109151]
[1771718702847,164.4485,85.159,85.052,8.91109151]
[1771718702848,10.5768,85.118,85.052,8.91109151]
[1771718703046,9.01172058,85.117,85.052,8.91109151]
[1771718703247,9.01172058,85.116,85.052,8.91109151]
[1771718703450,9.01172058,85.115,85.052,8.91109151]
[1771718703642,9.01172058,85.114,85.052,8.91109151]
[1771718703837,9.01172058,85.113,85.052,8.91109151]
[1771718704037,9.01172058,85.112,85.052,8.91109151]
[1771718704344,9.01172058,85.111,85.052,8.91109151]
[1771718704544,9.01172058,85.11,85.052,8.91109151]
[1771718704744,9.01172058,85.109,85.052,8.91109151]
[1771718704948,9.01172058,85.108,85.052,8.91109151]
[1771718705148,9.01172058,85.107,85.052,8.91109151]
[1771718705338,9.01172058,85.106,85.052,8.91109151]
[1771718705542,9.01172058,85.105,85.052,8.91109151]
[1771718705748,9.01172058,85.104,85.052,8.91109151]
[1771718706042,9.01172058,85.103,85.052,8.91109151]
[1771718706248,9.01172058,85.102,85.052,8.91109151]
[1771718706445,9.01172058,85.101,85.052,8.91109151]
[1771718706645,9.01172058,85.1,85.052,8.91109151]
[1771718706845,10.5768,85.118,85.052,8.91109151]
[1771718707048,9.02308952,85.117,85.052,8.91109151]
[1771718707250,21.62070798,85.143,85.052,8.91109151]
[1771718707251,10.5778,85.11,85.052,8.91109151]
[1771718707549,9.02308952,85.109,85.052,8.91109151]
[1771718707751,9.02308952,85.108,85.052,8.91109151]
[1771718708047,9.02308952,85.107,85.052,8.91109151]
[1771718708249,9.02308952,85.106,85.052,8.91109151]
[1771718708438,9.02308952,85.105,85.052,8.91109151]
[1771718708640,9.02308952,85.104,85.052,8.91109151]
[1771718708843,9.02308952,85.103,85.052,8.91109151]
[1771718709037,10.5778,85.11,85.052,8.91109151]
[1771718709038,9.02308952,85.102,85.052,8.91109151]
[1771718709238,9.02308952,85.101,85.052,8.91109151]
[1771718709450,9.02308952,85.1,85.052,8.91109151]
[1771718709647,9.02308952,85.099,85.052,8.91109151]
[1771718709844,9.02308952,85.098,85.052,8.91109151]
[1771718710149,9.02308952,85.097,85.052,8.91109151]
[1771718710351,9.02308952,85.096,85.052,8.91109151]
[1771718710542,10.5778,85.11,85.052,8.91109151]
[1771718710543,9.02308952,85.095,85.052,8.91109151]
[1771718710743,9.02308952,85.094,85.052,8.91109151]
[1771718710943,10.5778,85.11,85.052,8.91109151]
[1771718710944,9.02308952,85.093,85.052,8.91109151]
[1771718711150,9.02308952,85.092,85.052,8.91109151]
[1771718711449,9.02308952,85.091,85.052,8.91109151]
[1771718711644,21.47071104,85.11,85.052,8.91109151]
[1771718711851,10.578,85.108,85.052,8.91109151]
[1771718712155,9.1746343,85.107,85.04,8.82350587]
[1771718712349,10.5801,85.091,85.013,8.82350587]
[1771718712647,9.1746343,85.09,85.013,8.82350587]
[1771718712953,9.1746343,85.089,85.013,8.82350587]
[1771718713251,9.1746343,85.088,85.013,8.82350587]
[1771718713447,9.1746343,85.087,85.013,8.82350587]
[1771718713650,9.1746343,85.086,85.022,8.82625175]
[1771718713952,9.1746343,85.085,85.022,8.82625175]
[1771718714152,9.1746343,85.084,85.022,8.82625175]
[1771718714450,9.1746343,85.083,85.022,8.82625175]
[1771718714653,9.1746343,85.082,85.022,8.82625175]
[1771718714950,9.1746343,85.081,85.022,8.82625175]
[1771718715149,9.1746343,85.08,85.022,8.82625175]
[1771718715350,9.1746343,85.079,85.022,8.82625175]
[1771718715552,9.1746343,85.078,85.022,8.82625175]
[1771718715749,9.1746343,85.077,85.022,8.82625175]
[1771718715950,9.1746343,85.076,85.022,8.82625175]
[1771718716144,10.5803,85.089,85.022,8.82625175]
[1771718716346,9.1625375,85.088,85.022,8.82625175]
[1771718716553,9.1625375,85.087,85.022,8.82625175]
[1771718716747,9.1625375,85.086,85.025,10.5882]
[1771718716952,9.1625375,85.085,85.026,8.78307429]
[1771718717145,9.1625375,85.084,85.026,8.78307429]
[1771718717352,9.1625375,85.083,85.026,8.78307429]
[1771718717554,9.1625375,85.082,85.026,8.78307429]
[1771718717760,9.1625375,85.081,85.026,8.78307429]
[1771718717954,10.5803,85.089,85.026,8.78307429]
[1771718717955,9.1625375,85.08,85.026,8.78307429]
[1771718718157,9.1625375,85.079,85.026,8.78307429]
[1771718718357,10.5803,85.089,85.026,8.78307429]
[1771718718358,9.1625375,85.078,85.026,8.78307429]
[1771718718557,10.5803,85.089,85.026,8.78307429]
[1771718718756,9.15388028,85.088,85.026,8.78307429]
[1771718718957,9.15388028,85.087,85.026,8.78307429]
[1771718719254,9.15388028,85.086,85.026,8.78307429]
[1771718719456,9.15388028,85.085,85.026,8.78307429]
[1771718719656,9.15388028,85.084,85.026,8.78307429]
[1771718719856,9.15388028,85.083,85.026,8.78307429]
[1771718720058,9.15388028,85.082,85.026,8.78307429]
[1771718720360,9.15388028,85.081,85.026,8.78307429]
[1771718720556,9.15388028,85.08,85.026,8.78307429]
[1771718720756,9.15388028,85.079,85.026,8.78307429]
[1771718720961,10.5803,85.089,85.026,8.78307429]
[1771718721161,9.14787621,85.088,85.026,8.78307429]
[1771718721363,9.14787621,85.087,85.026,8.78307429]
[1771718721656,9.14787621,85.086,85.026,8.78307429]
[1771718721862,9.14787621,85.085,85.026,8.78307429]
[1771718722061,9.14787621,85.084,85.026,8.78307429]
[1771718722263,9.14787621,85.083,85.026,8.78307429]
[1771718722462,9.14787621,85.082,85.026,8.78307429]
[1771718722763,9.14787621,85.081,85.026,8.78307429]
[1771718722963,9.14787621,85.08,85.026,8.78307429]
[1771718723164,10.5803,85.089,85.026,8.78307429]
[1771718723360,9.14277851,85.088,85.026,8.78307429]
[1771718723566,9.14277851,85.087,85.026,8.78307429]
[1771718723761,9.14277851,85.086,85.026,8.78307429]
[1771718723961,9.14277851,85.085,85.026,8.78307429]
[1771718724266,9.14277851,85.084,85.026,8.78307429]
[1771718724565,9.14277851,85.083,85.026,8.78307429]
[1771718724763,9.14277851,85.082,85.026,8.78307429]
[1771718725063,9.14277851,85.081,85.026,8.78307429]
[1771718725267,10.5803,85.089,85.026,8.78307429]
[1771718725465,9.14031721,85.088,85.026,8.78307429]
[1771718725674,9.14031721,85.087,85.026,8.78307429]
[1771718725868,9.14031721,85.086,85.026,8.78307429]
[1771718726172,9.14031721,85.085,85.026,8.78307429]
[1771718726369,9.14031721,85.084,85.026,8.78307429]
[1771718726572,9.14031721,85.083,85.026,8.78307429]
[1771718726769,9.14031721,85.082,85.026,8.78307429]
[1771718727070,10.5803,85.089,85.026,8.78307429]
[1771718727263,9.1373355,85.088,85.026,8.78307429]
[1771718727467,9.1373355,85.087,85.026,8.78307429]
[1771718727667,9.1373355,85.086,85.026,8.78307429]
[1771718727868,9.1373355,85.085,85.026,8.78307429]
[1771718728069,9.1373355,85.084,85.026,8.78307429]
[1771718728372,9.1373355,85.083,85.026,8.78307429]
[1771718728573,9.1373355,85.082,85.026,8.78307429]
[1771718728868,10.89291104,85.102,85.026,8.78307429]
[1771718729074,10.5817,85.078,85.014,8.85610153]
[1771718729375,9.13653408,85.077,85.014,8.85610153]
[1771718729574,9.13653408,85.076,85.014,8.85610153]
[1771718729874,9.13653408,85.075,85.014,8.85610153]
[1771718730074,9.13653408,85.074,85.014,8.85610153]
[1771718730274,9.13653408,85.073,85.014,8.85610153]
[1771718730573,10.5817,85.078,85.014,8.85610153]
[1771718730776,9.13192645,85.077,85.016,8.83323]
[1771718730968,9.13192645,85.076,85.016,8.83323]
[1771718731168,9.13192645,85.075,85.016,8.83323]
[1771718731370,9.13192645,85.074,85.016,8.83323]
[1771718731570,9.13192645,85.073,85.02,8.83323]
[1771718731771,10.5817,85.078,85.02,8.83323]
[1771718731973,9.13077909,85.077,85.02,8.83323]
[1771718732174,10.5817,85.078,85.02,8.83323]
[1771718732374,9.12985755,85.077,85.02,8.83323]
[1771718732579,10.5817,85.078,85.02,8.83323]
[1771718732580,9.12985755,85.076,85.02,8.83323]
[1771718732877,9.12985755,85.075,85.022,8.85438852]
[1771718733078,9.12985755,85.074,85.022,8.85438852]
[1771718733274,10.5817,85.078,85.022,8.85438852]
[1771718733579,9.12866415,85.077,85.022,8.85438852]
[1771718733778,9.12866415,85.076,85.022,8.85438852]
[1771718733976,9.12866415,85.075,85.022,8.85438852]
[1771718734176,10.5817,85.078,85.022,8.85438852]
[1771718734378,9.12816138,85.077,85.022,8.85438852]
[1771718734578,9.12816138,85.076,85.022,8.85438852]
[1771718734778,9.12816138,85.075,85.022,8.85438852]
[1771718734974,9.12816138,85.074,85.022,8.85438852]
[1771718735181,10.5817,85.078,85.022,8.85438852]
[1771718735377,9.12708632,85.077,85.022,8.85438852]
[1771718735681,10.5821,85.075,85.022,8.85438852]
[1771718735882,9.12708632,85.074,85.022,8.85438852]
[1771718736081,10.5821,85.075,85.022,8.85438852]
[1771718736281,9.12628949,85.074,85.022,8.85438852]
[1771718736580,9.12604476,85.073,85.022,8.85438852]
[1771718736777,10.5821,85.075,85.022,8.85438852]
[1771718736976,9.12610218,85.074,85.022,8.85438852]
[1771718737176,10.5821,85.075,85.022,8.85438852]
[1771718737382,9.12553522,85.074,85.022,8.85438852]
[1771718737679,10.5821,85.075,85.022,8.85438852]
[1771718737878,9.12554329,85.074,85.022,8.85438852]
[1771718738079,10.5821,85.075,85.022,8.85438852]
[1771718740784,9.14333325,85.074,85.022,8.85438852]
[1771718741082,10.5821,85.075,85.022,8.85438852]
[1771718741283,9.14323031,85.074,85.022,8.85438852]
[1771718741484,10.5821,85.075,85.022,8.85438852]
[1771718741686,9.14328813,85.074,85.022,8.85438852]
[1771718741885,10.5821,85.075,85.022,8.85438852]
[1771718742074,9.14328813,85.074,85.022,8.85438852]
[1771718742281,10.5821,85.075,85.022,8.85438852]
[1771718742482,9.14337862,85.074,85.022,8.85438852]
[1771718742781,10.5821,85.075,85.022,8.85438852]
[1771718742984,9.14337748,85.074,85.022,8.85438852]
[1771718743184,10.5821,85.075,85.022,8.85438852]
[1771718743388,9.14402501,85.074,85.022,8.85438852]
[1771718743686,10.5821,85.075,85.022,8.85438852]
[1771718743884,9.14402905,85.074,85.022,8.85438852]
[1771718744188,9.14402905,85.073,85.022,8.85438852]
[1771718744387,9.14402905,85.072,85.022,8.85438852]
[1771718744579,10.5821,85.075,85.022,8.85438852]
[1771718744779,9.14645481,85.074,85.022,8.85438852]
[1771718745085,9.14645481,85.073,85.022,8.85438852]
[1771718745285,10.5821,85.075,85.022,8.85438852]
[1771718745487,9.14661035,85.074,85.022,8.85438852]
[1771718745687,9.14661035,85.073,85.022,8.85438852]
[1771718745889,10.5821,85.075,85.022,8.85438852]
[1771718746087,9.14661035,85.074,85.022,8.85438852]
[1771718746283,9.14661035,85.073,85.022,8.85438852]
[1771718746486,10.5821,85.075,85.022,8.85438852]
[1771718746791,9.15126581,85.074,85.022,8.85438852]
[1771718746990,9.15126581,85.073,85.022,8.85438852]
[1771718747187,9.15126581,85.072,85.022,8.85438852]
[1771718747388,9.15126581,85.071,85.022,8.85438852]
[1771718747689,9.15126581,85.07,85.022,8.85438852]
[1771718747882,9.15126581,85.069,85.022,8.85438852]
[1771718748083,10.5821,85.075,85.022,8.85438852]
[1771718748283,9.15847301,85.074,85.022,8.85438852]
[1771718748492,10.5821,85.075,85.022,8.85438852]
[1771718748493,9.15847301,85.073,85.022,8.85438852]
[1771718748789,10.5821,85.075,85.022,8.85438852]
[1771718748790,9.15847301,85.072,85.022,8.85438852]
[1771718748990,9.15847301,85.071,85.022,8.85438852]
[1771718749293,9.15847301,85.07,85.022,8.85438852]
[1771718749590,9.15847301,85.069,85.022,8.85438852]
[1771718749790,9.15847301,85.068,85.022,8.85438852]
[1771718750092,10.5821,85.075,85.022,8.85438852]
[1771718750290,9.16094159,85.074,85.022,8.85438852]
[1771718750590,9.16094159,85.073,85.022,8.85438852]
[1771718750789,9.16094159,85.072,85.022,8.85438852]
[1771718750992,9.16094159,85.071,85.022,8.85438852]
[1771718751284,9.16094159,85.07,85.022,8.85438852]
[1771718751493,9.16094159,85.069,85.022,8.85438852]
[1771718751687,9.16094159,85.068,85.022,8.85438852]
[1771718751892,9.16094159,85.067,85.022,8.85438852]
[1771718752192,9.16094159,85.066,85.022,8.85438852]
[1771718752390,9.16094159,85.065,85.022,8.85438852]
[1771718752594,10.5821,85.075,85.022,8.85438852]
[1771718752791,9.16457552,85.074,85.022,8.85438852]
[1771718753094,10.89291104,85.098,85.022,8.85438852]
[1771718753296,20.0608156,85.097,85.022,8.85438852]
[1771718753491,9.16790456,85.096,85.022,8.85438852]
[1771718753691,9.16790456,85.095,85.032,10.5873]
[1771718753885,9.16790456,85.094,85.033,8.9280724]
[1771718754089,9.16790456,85.093,85.033,8.9280724]
[1771718754293,9.16790456,85.092,85.033,8.9280724]
[1771718754494,9.16790456,85.091,85.033,8.9280724]
[1771718754693,9.16790456,85.09,85.033,8.9280724]
[1771718754894,9.16790456,85.089,85.033,8.9280724]
[1771718755091,9.16790456,85.088,85.033,8.9280724]
[1771718755293,9.16790456,85.087,85.033,8.9280724]
[1771718755493,9.16790456,85.086,85.033,8.9280724]
[1771718755693,9.16790456,85.085,85.033,8.9280724]
[1771718755894,9.16790456,85.084,85.033,8.9280724]
[1771718756088,9.16790456,85.083,85.033,8.9280724]
[1771718756292,9.16790456,85.082,85.033,8.9280724]
[1771718756488,9.16790456,85.081,85.033,8.9280724]
[1771718756694,9.16790456,85.08,85.033,8.9280724]
[1771718756897,9.16790456,85.079,85.033,8.9280724]
[1771718757089,9.16790456,85.079,84.993,35.29]
[1771718757090,3.96271143,85.107,85.059,4.21218738]
[1771718757296,3.96271143,85.105,85.059,4.21218738]
[1771718785215,3.96271143,85.105,84.996,175.0]
[1771718785216,3.65999827,85.132,85.062,3.76512521]
[1771718786413,3.65999827,85.132,85.076,3.76512521]
[1771718787608,3.65999827,85.132,85.081,3.76512521]
[1771718788816,3.65999827,85.132,85.087,3.76512521]
[1771718792117,3.65999827,85.143,85.093,3.76512521]
[1771718793722,3.65999827,85.143,85.097,3.76512521]
[1771718798421,3.65999827,85.143,85.085,3.70442577]
[1771718800924,3.94779363,85.141,85.085,3.70442577]
[1771718805335,3.94779363,85.139,85.072,3.70442577]
[1771718805534,3.94779363,85.137,85.072,3.70442577]
[1771718813642,3.94779363,85.137,85.074,3.70442577]
[1771718815335,3.94779363,85.135,85.074,3.70442577]
[1771718820339,3.94779363,85.133,85.074,3.70442577]
[1771718821432,3.94779363,85.133,85.077,3.70442577]
[1771718822736,3.94779363,85.133,85.08,3.70442577]
[1771718824441,3.94779363,85.131,85.08,3.70442577]
[1771718827249,3.94779363,85.129,85.08,3.70442577]
[1771718829246,12.89185991,85.128,85.08,3.70442577]
[1771718829549,3.9527124,85.128,85.08,3.70442577]
[1771718830337,8.94136208,85.127,85.085,3.97600983]
[1771718830546,3.9527124,85.136,85.085,3.97600983]
[1771718830943,10.5726,85.151,85.085,3.97600983]
[1771718830944,3.9527124,85.134,85.085,3.97600983]
[1771718842161,3.71875586,85.152,85.09,3.92177832]
[1771718842366,3.71875586,85.15,85.09,3.92177832]
[1771718842562,3.71875586,85.148,85.09,3.92177832]
[1771718842760,3.71875586,85.146,85.09,3.92177832]
[1771718842962,3.71875586,85.144,85.09,3.92177832]
[1771718843158,12.69889625,85.143,85.09,3.92177832]
[1771718843363,3.71875586,85.143,85.09,3.92177832]
[1771718843866,3.71875586,85.143,85.095,3.92177832]
[1771718844560,8.97912368,85.142,85.095,3.92177832]
[1771718844754,3.71875586,85.14,85.095,3.92177832]
[1771718845359,3.71875586,85.138,85.095,3.92177832]
[1771718845666,3.71875586,85.134,85.056,3.92177832]
[1771718845855,3.71875586,85.124,85.056,3.92177832]
[1771718846059,3.71875586,85.12,85.056,3.92177832]
[1771718846260,14.61117485,85.137,85.056,3.92177832]
[1771718846261,3.71875586,85.118,85.056,3.92177832]
[1771718846459,3.71875586,85.116,85.056,3.92177832]
[1771718846661,3.71875586,85.114,85.056,3.92177832]
[1771718846860,3.71875586,85.112,85.056,3.92177832]
[1771718847170,3.71875586,85.11,85.056,3.92177832]
[1771718847356,3.71875586,85.108,85.056,3.92177832]
[1771718847763,3.71875586,85.108,85.058,3.92177832]
[1771718849264,3.71875586,85.108,85.057,10.5842]
[1771718849265,3.71875586,85.106,85.055,30.24072101]
[1771718849559,10.5771,85.115,85.033,3.92177832]
[1771718849560,3.71875586,85.104,85.033,3.92177832]
[1771718849765,3.71875586,85.1,85.033,3.92177832]
[1771718849964,3.71875586,85.098,85.033,3.92177832]
[1771718850157,3.71875586,85.096,85.033,3.92177832]
[1771718850357,3.71875586,85.094,84.985,3.92177832]
[1771718850552,3.71875586,85.088,85.019,3.92177832]
[1771718850757,3.71875586,85.086,85.019,3.92177832]
[1771718850959,3.71875586,85.084,85.019,3.92177832]
[1771718851167,21.62070798,85.123,85.019,3.92177832]
[1771718851168,3.71875586,85.082,85.019,3.92177832]
[1771718852459,3.71875586,85.08,85.019,3.92177832]
[1771718852866,10.5813,85.081,85.019,3.92177832]
[1771718852867,3.71875586,85.078,85.019,3.92177832]
[1771718854168,3.71875586,85.076,85.019,3.92177832]
[1771718859672,3.71875586,85.076,85.023,3.61261618]
[1771718862577,3.71875586,85.076,85.026,3.61261618]
[1771718864878,10.91539985,85.12,84.969,456.19099208]
[1771718864879,3.62071875,85.072,85.015,3.61261618]
[1771718866680,3.62071875,85.059,85.015,3.61261618]
[1771718866888,3.62071875,85.059,85.004,3.61261618]
[1771718869183,3.62071875,85.047,84.977,3.61261618]
[1771718870385,3.62071875,85.041,84.979,3.61261618]
[1771718871687,3.62071875,85.041,84.984,3.61261618]
[1771718873088,3.62071875,85.041,84.994,3.61261618]
[1771718873288,3.62071875,85.063,84.994,3.61261618]
[1771718874687,3.62071875,85.063,84.995,10.5919]
[1771718874985,3.62071875,85.063,84.996,3.61261618]
[1771718877892,3.62071875,85.063,85.002,3.61261618]
[1771718879687,3.62071875,85.063,85.005,3.61261618]
[1771718883889,3.62071875,85.063,85.007,3.61261618]
[1771718885787,3.62071875,85.063,85.011,3.61261618]
[1771718893698,3.62071875,85.063,85.013,3.8973514]
[1771718901509,3.62071875,85.063,85.014,10.5896]
[1771718901808,3.62071875,85.063,85.015,3.8973514]
[1771718904013,3.62071875,85.063,85.018,3.8973514]
[1771718910017,10.582,85.075,84.973,37.31613205]
[1771718910018,3.63702301,85.075,85.021,3.8973514]
[1771718910410,3.63702301,85.103,85.021,3.8973514]
[1771718910715,3.63702301,85.101,85.021,3.8973514]
[1771718911014,10.5792,85.098,85.024,10.5884]
[1771718911309,3.63702301,85.096,85.025,3.8973514]
[1771718911513,3.63702301,85.094,85.025,3.8973514]
[1771718911714,3.63702301,85.092,85.025,3.8973514]
[1771718912016,3.63702301,85.09,85.025,3.8973514]
[1771718912916,3.63702301,85.09,85.033,3.8973514]
[1771718917206,10.91539985,85.111,85.033,3.8973514]
[1771718917207,3.63702301,85.087,85.033,3.8973514]
[1771718917412,3.63702301,85.087,85.021,10.5887]
[1771718917413,3.63702301,85.085,85.022,3.8973514]